bitfinex-derivatives/quotes_BNBF0:USTF0_20250709
["timestamp","ask_amount","ask_price","bid_price","bid_amount"]
[1752021130444,1.46433446,659.89,659.75,2.315]
[1752021130644,1.46433446,659.88,659.75,2.315]
[1752021130943,1.46433446,659.87,659.75,2.315]
[1752021131240,1.46433446,659.86,659.75,2.315]
[1752021131439,1.46433446,659.85,659.75,2.315]
[1752021131640,1.46433446,659.84,659.75,2.315]
[1752021131838,1.46433446,659.83,659.75,2.315]
[1752021132038,1.46433446,659.82,659.75,2.315]
[1752021132242,1.46433446,659.81,659.75,2.315]
[1752021132446,1.46433446,659.8,659.75,2.315]
[1752021132642,1.46433446,659.79,659.75,2.315]
[1752021132939,1.70224701,660.0,659.75,2.315]
[1752021133142,1.46321306,659.99,659.75,2.315]
[1752021133343,1.70224701,659.97,659.75,2.315]
[1752021133541,1.46321306,659.96,659.75,2.315]
[1752021133740,1.46321306,659.95,659.75,2.315]
[1752021133940,1.46321306,659.94,659.75,2.315]
[1752021134140,1.46321306,659.93,659.75,2.315]
[1752021134344,1.46321306,659.92,659.75,2.315]
[1752021134646,1.46321306,659.91,659.75,2.315]
[1752021134839,1.46321306,659.9,659.75,2.315]
[1752021135040,1.46321306,659.89,659.75,2.315]
[1752021135242,1.46321306,659.88,659.75,2.315]
[1752021135440,1.46321306,659.87,659.75,2.315]
[1752021135741,1.46321306,659.86,659.75,2.315]
[1752021135943,1.46321306,659.85,659.75,2.315]
[1752021136143,1.46321306,659.84,659.75,2.315]
[1752021136340,1.46321306,659.83,659.75,2.315]
[1752021136544,1.46321306,659.82,659.75,2.315]
[1752021136745,1.46321306,659.81,659.75,2.315]
[1752021137045,1.46321306,659.8,659.75,2.315]
[1752021137246,1.46321306,659.79,659.75,2.315]
[1752021137447,1.70224701,659.98,659.75,2.315]
[1752021137744,1.46188102,659.97,659.75,2.315]
[1752021137947,1.46188102,659.96,659.75,2.315]
[1752021138145,1.46188102,659.95,659.75,2.315]
[1752021138343,1.46188102,659.94,659.75,2.315]
[1752021138547,1.46188102,659.93,659.75,2.315]
[1752021138743,1.46188102,659.92,659.75,2.315]
[1752021138947,1.46188102,659.91,659.75,2.315]
[1752021139247,1.46188102,659.9,659.75,2.315]
[1752021139444,1.46188102,659.89,659.75,2.315]
[1752021139650,1.46188102,659.88,659.75,2.315]
[1752021139851,1.46188102,659.87,659.75,2.315]
[1752021140054,1.46188102,659.86,659.75,2.315]
[1752021140255,1.46188102,659.85,659.75,2.315]
[1752021140449,1.46188102,659.84,659.75,2.315]
[1752021140651,1.46188102,659.83,659.75,2.315]
[1752021140854,1.46188102,659.82,659.75,2.315]
[1752021141055,1.46188102,659.81,659.75,2.315]
[1752021141256,1.46188102,659.8,659.75,2.315]
[1752021141457,1.70224701,659.99,659.75,2.315]
[1752021141652,1.46144545,659.98,659.75,2.315]
[1752021141856,1.46144545,659.97,659.75,2.315]
[1752021142057,3.16369246,659.96,659.75,2.315]
[1752021142254,1.46144545,659.95,659.75,2.315]
[1752021142453,1.46144545,659.94,659.75,2.315]
[1752021142653,1.46144545,659.93,659.75,2.315]
[1752021142858,1.46144545,659.92,659.75,2.315]
[1752021143058,1.46144545,659.91,659.75,2.315]
[1752021143257,1.46144545,659.9,659.75,2.315]
[1752021143457,1.46144545,659.89,659.75,2.315]
[1752021143656,1.46144545,659.88,659.75,2.315]
[1752021143862,1.46144545,659.87,659.75,2.315]
[1752021144059,1.46144545,659.86,659.75,2.315]
[1752021144260,1.46144545,659.85,659.75,2.315]
[1752021144461,1.46144545,659.84,659.75,2.315]
[1752021144661,1.46144545,659.83,659.75,2.315]
[1752021144961,1.46144545,659.82,659.75,2.315]
[1752021145161,1.46144545,659.81,659.75,2.315]
[1752021145361,1.46144545,659.8,659.75,2.315]
[1752021145562,1.46144545,659.79,659.75,2.315]
[1752021145858,1.70224701,659.98,659.75,2.315]
[1752021146157,1.46117816,659.97,659.75,2.315]
[1752021146362,1.46117816,659.96,659.75,2.315]
[1752021146558,1.46117816,659.95,659.75,2.315]
[1752021146757,1.46117816,659.94,659.75,2.315]
[1752021146959,1.46117816,659.93,659.75,2.315]
[1752021147257,1.46117816,659.92,659.75,2.315]
[1752021147457,1.46117816,659.91,659.75,2.315]
[1752021147659,1.46117816,659.9,659.75,2.315]
[1752021147962,1.46117816,659.89,659.75,2.315]
[1752021148158,1.46117816,659.88,659.75,2.315]
[1752021148361,1.46117816,659.87,659.75,2.315]
[1752021148559,1.46117816,659.86,659.75,2.315]
[1752021148762,1.46117816,659.85,659.75,2.315]
[1752021148963,1.46117816,659.84,659.75,2.315]
[1752021149164,1.46117816,659.83,659.75,2.315]
[1752021149364,1.46117816,659.82,659.75,2.315]
[1752021149564,1.46117816,659.81,659.75,2.315]
[1752021149764,1.46117816,659.8,659.75,2.315]
[1752021150065,1.46117816,659.79,659.75,2.315]
[1752021150265,1.70224701,659.98,659.75,2.315]
[1752021150466,1.46122339,659.97,659.75,2.315]
[1752021150671,1.70224701,659.98,659.75,2.315]
[1752021150672,1.46122339,659.96,659.75,2.315]
[1752021150963,1.46122339,659.95,659.75,2.315]
[1752021151166,1.46122339,659.94,659.75,2.315]
[1752021151367,1.46122339,659.93,659.75,2.315]
[1752021151668,1.46122339,659.92,659.75,2.315]
[1752021151866,1.70224701,659.98,659.75,2.315]
[1752021151867,1.46122339,659.91,659.75,2.315]
[1752021152065,1.46122339,659.9,659.75,2.315]
[1752021152369,1.46122339,659.89,659.75,2.315]
[1752021152569,1.46122339,659.88,659.75,2.315]
[1752021152869,1.46122339,659.87,659.75,2.315]
[1752021153166,1.46122339,659.86,659.75,2.315]
[1752021153468,1.46122339,659.85,659.75,2.315]
[1752021153671,1.46122339,659.84,659.75,2.315]
[1752021153870,1.46122339,659.83,659.75,2.315]
[1752021154165,1.46122339,659.82,659.75,2.315]
[1752021154369,1.46122339,659.81,659.75,2.315]
[1752021154669,1.46122339,659.8,659.75,2.315]
[1752021154969,1.46122339,659.79,659.75,2.315]
[1752021155166,1.70224701,659.98,659.75,2.315]
[1752021155365,1.4612847,659.97,659.75,2.315]
[1752021155564,1.4612847,659.96,659.57,0.2636893]
[1752021155770,1.4612847,659.95,659.57,0.2636893]
[1752021155965,1.4612847,659.94,659.57,0.2636893]
[1752021156165,1.4612847,659.93,659.57,0.2636893]
[1752021156368,1.4612847,659.92,659.57,0.2636893]
[1752021156566,1.4612847,659.91,659.57,0.2636893]
[1752021156771,1.4612847,659.9,659.57,0.2636893]
[1752021156970,1.4612847,659.89,659.57,0.2636893]
[1752021157168,1.4612847,659.88,659.57,0.2636893]
[1752021157369,1.4612847,659.87,659.57,0.2636893]
[1752021157571,1.4612847,659.86,659.57,0.2636893]
[1752021157866,1.4612847,659.85,659.57,0.2636893]
[1752021158070,1.4612847,659.84,659.57,0.2636893]
[1752021158367,1.4612847,659.83,659.57,0.2636893]
[1752021158668,1.4612847,659.82,659.57,0.2636893]
[1752021158870,1.4612847,659.81,659.57,0.2636893]
[1752021159166,1.4612847,659.8,659.57,0.2636893]
[1752021159467,1.4612847,659.79,659.57,0.2636893]
[1752021159670,1.70224701,659.98,659.57,0.2636893]
[1752021159871,1.46127803,659.97,659.57,0.2636893]
[1752021160171,1.46127803,659.96,659.57,0.2636893]
[1752021160470,1.70224701,659.98,659.57,0.2636893]
[1752021160471,1.46127803,659.95,659.57,0.2636893]
[1752021160671,1.46127803,659.94,659.57,0.2636893]
[1752021160872,1.46127803,659.93,659.57,0.2636893]
[1752021161073,1.46127803,659.92,659.57,0.2636893]
[1752021161273,1.46127803,659.91,659.57,0.2636893]
[1752021161474,1.46127803,659.9,659.57,0.2636893]
[1752021161768,1.46127803,659.89,659.57,0.2636893]
[1752021161972,1.46127803,659.88,659.57,0.2636893]
[1752021162170,1.46127803,659.87,659.57,0.2636893]
[1752021162374,1.46127803,659.86,659.57,0.2636893]
[1752021162574,1.46127803,659.85,659.57,0.2636893]
[1752021162770,1.46127803,659.84,659.57,0.2636893]
[1752021162976,1.46127803,659.83,659.57,0.2636893]
[1752021163271,1.46127803,659.82,659.57,0.2636893]
[1752021163471,1.46127803,659.81,659.57,0.2636893]
[1752021163675,1.46127803,659.8,659.57,0.2636893]
[1752021163874,1.46127803,659.79,659.57,0.2636893]
[1752021164074,1.46127803,659.78,659.57,0.2636893]
[1752021164274,1.46127803,659.77,659.57,0.2636893]
[1752021164568,1.46127803,659.76,659.57,0.2636893]
[1752021164775,1.70224701,660.02,659.57,0.2636893]
[1752021164971,1.46137383,660.01,659.57,0.2636893]
[1752021165169,1.46137383,660.0,659.57,0.2636893]
[1752021165373,1.46137383,659.99,659.57,0.2636893]
[1752021165574,1.46137383,659.98,659.57,0.2636893]
[1752021165774,1.46137383,659.97,659.57,0.2636893]
[1752021165972,1.46137383,659.96,659.57,0.2636893]
[1752021166177,1.46137383,659.95,659.57,0.2636893]
[1752021166477,1.46137383,659.94,659.57,0.2636893]
[1752021166671,1.46137383,659.93,659.57,0.2636893]
[1752021166970,1.46137383,659.92,659.57,0.2636893]
[1752021167174,1.46137383,659.91,659.57,0.2636893]
[1752021167373,1.46137383,659.9,659.57,0.2636893]
[1752021167571,1.46137383,659.89,659.57,0.2636893]
[1752021167771,1.46137383,659.88,659.57,0.2636893]
[1752021167978,1.46137383,659.87,659.57,0.2636893]
[1752021168173,1.46137383,659.86,659.57,0.2636893]
[1752021168374,1.46137383,659.85,659.57,0.2636893]
[1752021168573,1.46137383,659.84,659.57,0.2636893]
[1752021168778,1.46137383,659.83,659.57,0.2636893]
[1752021168974,1.46137383,659.82,659.57,0.2636893]
[1752021169179,1.46137383,659.81,659.57,0.2636893]
[1752021169479,1.46137383,659.8,659.57,0.2636893]
[1752021169772,1.46137383,659.79,659.57,0.2636893]
[1752021169977,1.46137383,659.78,659.57,0.2636893]
[1752021170173,1.46137383,659.77,659.57,0.2636893]
[1752021170376,1.46137383,659.76,659.57,0.2636893]
[1752021170578,1.46137383,659.75,659.57,0.2636893]
[1752021170779,1.70224701,660.01,659.57,0.2636893]
[1752021171077,1.46046069,660.0,659.57,0.2636893]
[1752021171274,1.46046069,659.99,659.57,0.2636893]
[1752021171478,1.46046069,659.98,659.57,0.2636893]
[1752021171677,1.46046069,659.97,659.57,0.2636893]
[1752021171880,1.46046069,659.96,659.57,0.2636893]
[1752021172081,1.46046069,659.95,659.57,0.2636893]
[1752021172276,1.46046069,659.94,659.57,0.2636893]
[1752021172476,1.46046069,659.93,659.57,0.2636893]
[1752021172779,1.46046069,659.92,659.57,0.2636893]
[1752021172980,1.46046069,659.91,659.57,0.2636893]
[1752021173180,1.46046069,659.9,659.57,0.2636893]
[1752021173379,1.46046069,659.89,659.57,0.2636893]
[1752021173577,1.46046069,659.88,659.57,0.2636893]
[1752021173777,1.46046069,659.87,659.57,0.2636893]
[1752021174078,1.46046069,659.86,659.57,0.2636893]
[1752021174281,1.46046069,659.85,659.57,0.2636893]
[1752021174577,1.70224701,660.01,659.57,0.2636893]
[1752021174578,1.46046069,659.84,659.57,0.2636893]
[1752021174779,1.46046069,659.83,659.57,0.2636893]
[1752021175082,1.46046069,659.82,659.57,0.2636893]
[1752021175381,1.70224701,660.01,659.57,0.2636893]
[1752021175582,1.46093929,660.0,659.57,0.2636893]
[1752021175782,1.46093929,659.99,659.57,0.2636893]
[1752021175982,1.46093929,659.98,659.57,0.2636893]
[1752021176280,1.46093929,659.97,659.57,0.2636893]
[1752021176478,1.46093929,659.96,659.57,0.2636893]
[1752021176679,1.46093929,659.95,659.57,0.2636893]
[1752021176879,1.46093929,659.94,659.57,0.2636893]
[1752021177180,1.46093929,659.93,659.57,0.2636893]
[1752021177378,1.46093929,659.92,659.57,0.2636893]
[1752021177581,1.46093929,659.91,659.57,0.2636893]
[1752021177784,1.46093929,659.9,659.57,0.2636893]
[1752021177984,1.46093929,659.89,659.57,0.2636893]
[1752021178184,1.46093929,659.88,659.57,0.2636893]
[1752021178382,1.46093929,659.87,659.57,0.2636893]
[1752021178684,1.46093929,659.86,659.57,0.2636893]
[1752021178880,1.46093929,659.85,659.57,0.2636893]
[1752021179081,1.46093929,659.84,659.57,0.2636893]
[1752021179384,1.46093929,659.83,659.57,0.2636893]
[1752021179586,1.46093929,659.82,659.57,0.2636893]
[1752021179885,1.46093929,659.81,659.57,0.2636893]
[1752021180186,1.70224701,660.0,659.57,0.2636893]
[1752021180486,1.46150762,659.99,659.57,0.2636893]
[1752021180685,1.46150762,659.98,659.57,0.2636893]
[1752021180981,1.46150762,659.97,659.57,0.2636893]
[1752021181184,1.46150762,659.96,659.57,0.2636893]
[1752021181385,1.46150762,659.95,659.57,0.2636893]
[1752021181582,1.46150762,659.94,659.57,0.2636893]
[1752021181886,1.70224701,659.99,659.57,0.2636893]
[1752021181887,1.46150762,659.93,659.57,0.2636893]
[1752021182087,1.46150762,659.92,659.57,0.2636893]
[1752021182287,1.46150762,659.91,659.57,0.2636893]
[1752021182486,1.46150762,659.9,659.57,0.2636893]
[1752021182688,1.46150762,659.89,659.57,0.2636893]
[1752021182885,1.46150762,659.88,659.57,0.2636893]
[1752021183090,1.46150762,659.87,659.57,0.2636893]
[1752021183289,1.46150762,659.86,659.57,0.2636893]
[1752021183491,1.46150762,659.85,659.57,0.2636893]
[1752021183690,1.46150762,659.84,659.57,0.2636893]
[1752021183891,1.70224701,660.03,659.57,0.2636893]
[1752021184092,1.46224235,660.02,659.57,0.2636893]
[1752021184288,1.46224235,660.01,659.57,0.2636893]
[1752021184489,1.46224235,660.0,659.57,0.2636893]
[1752021184789,1.46224235,659.99,659.57,0.2636893]
[1752021184988,1.46224235,659.98,659.57,0.2636893]
[1752021185193,1.46224235,659.97,659.57,0.2636893]
[1752021185387,1.46224235,659.96,659.57,0.2636893]
[1752021185592,1.46224235,659.95,659.57,0.2636893]
[1752021185790,1.46224235,659.94,659.57,0.2636893]
[1752021185990,1.46224235,659.93,659.57,0.2636893]
[1752021186190,1.46224235,659.92,659.57,0.2636893]
[1752021186393,1.46224235,659.91,659.57,0.2636893]
[1752021186694,1.46224235,659.9,659.57,0.2636893]
[1752021186890,1.46224235,659.89,659.57,0.2636893]
[1752021187090,1.46224235,659.88,659.57,0.2636893]
[1752021187294,1.46224235,659.87,659.57,0.2636893]
[1752021187494,1.46224235,659.86,659.57,0.2636893]
[1752021187695,1.46224235,659.85,659.57,0.2636893]
[1752021187894,1.46224235,659.84,659.57,0.2636893]
[1752021188096,1.46224235,659.83,659.57,0.2636893]
[1752021188295,1.46224235,659.82,659.57,0.2636893]
[1752021188493,1.70224701,660.01,659.57,0.2636893]
[1752021188692,1.46312107,660.0,659.57,0.2636893]
[1752021188892,1.70224701,660.01,659.57,0.2636893]
[1752021188893,1.46312107,659.99,659.57,0.2636893]
[1752021189091,1.46312107,659.98,659.57,0.2636893]
[1752021189292,1.46312107,659.97,659.57,0.2636893]
[1752021189592,1.46312107,659.96,659.57,0.2636893]
[1752021189790,1.46312107,659.95,659.57,0.2636893]
[1752021190097,1.46312107,659.94,659.57,0.2636893]
[1752021190293,1.46312107,659.93,659.57,0.2636893]
[1752021190491,1.46312107,659.92,659.57,0.2636893]
[1752021190695,1.46312107,659.91,659.57,0.2636893]
[1752021190991,1.46312107,659.9,659.57,0.2636893]
[1752021191195,1.46312107,659.89,659.57,0.2636893]
[1752021191494,1.46312107,659.88,659.57,0.2636893]
[1752021191693,1.46312107,659.87,659.57,0.2636893]
[1752021191892,1.46312107,659.86,659.57,0.2636893]
[1752021192094,1.46312107,659.85,659.57,0.2636893]
[1752021192293,1.46312107,659.84,659.57,0.2636893]
[1752021192497,1.46312107,659.83,659.57,0.2636893]
[1752021192697,1.46312107,659.82,659.57,0.2636893]
[1752021192994,1.70224701,660.01,659.57,0.2636893]
[1752021193298,1.46300965,660.0,659.57,0.2636893]
[1752021193497,1.46300965,659.99,659.57,0.2636893]
[1752021193694,1.46300965,659.98,659.57,0.2636893]
[1752021193993,1.46300965,659.97,659.57,0.2636893]
[1752021194197,1.46300965,659.96,659.57,0.2636893]
[1752021194394,1.46300965,659.95,659.57,0.2636893]
[1752021194694,1.46300965,659.94,659.57,0.2636893]
[1752021194894,1.70224701,660.02,659.57,0.2636893]
[1752021194895,1.46300965,659.93,659.57,0.2636893]
[1752021195092,1.46300965,659.92,659.57,0.2636893]
[1752021195294,1.46300965,659.91,659.57,0.2636893]
[1752021195494,1.46300965,659.9,659.57,0.2636893]
[1752021195694,1.46300965,659.89,659.57,0.2636893]
[1752021195893,1.46300965,659.88,659.57,0.2636893]
[1752021196098,1.46300965,659.87,659.57,0.2636893]
[1752021196398,1.46300965,659.86,659.57,0.2636893]
[1752021196693,1.46300965,659.85,659.57,0.2636893]
[1752021196898,1.46300965,659.84,659.57,0.2636893]
[1752021197197,1.46300965,659.83,659.57,0.2636893]
[1752021197394,1.70224701,660.03,659.57,0.2636893]
[1752021197598,1.46263642,660.02,659.57,0.2636893]
[1752021197894,1.46263642,660.01,659.57,0.2636893]
[1752021198099,1.46263642,660.0,659.57,0.2636893]
[1752021198296,1.46263642,659.99,659.57,0.2636893]
[1752021198494,1.46263642,659.98,659.57,0.2636893]
[1752021198698,1.46263642,659.97,659.57,0.2636893]
[1752021198893,1.46263642,659.96,659.57,0.2636893]
[1752021199194,1.70224701,660.03,659.57,0.2636893]
[1752021199195,1.46263642,659.95,659.57,0.2636893]
[1752021199496,1.46263642,659.94,659.57,0.2636893]
[1752021199692,1.46263642,659.93,659.57,0.2636893]
[1752021199897,1.46263642,659.92,659.57,0.2636893]
[1752021200197,1.46263642,659.91,659.57,0.2636893]
[1752021200394,1.46263642,659.9,659.57,0.2636893]
[1752021200594,1.46263642,659.89,659.57,0.2636893]
[1752021200893,1.46263642,659.88,659.57,0.2636893]
[1752021201092,1.46263642,659.87,659.57,0.2636893]
[1752021201294,1.46263642,659.86,659.57,0.2636893]
[1752021201493,1.46263642,659.85,659.57,0.2636893]
[1752021201693,1.46263642,659.84,659.57,0.2636893]
[1752021201998,1.46263642,659.83,659.57,0.2636893]
[1752021202196,1.70224701,660.03,659.57,0.2636893]
[1752021202400,1.46241932,660.02,659.57,0.2636893]
[1752021202598,1.46241932,660.01,659.57,0.2636893]
[1752021202898,1.70224701,660.03,659.57,0.2636893]
[1752021202899,1.46241932,660.0,659.57,0.2636893]
[1752021203101,1.46241932,659.99,659.57,0.2636893]
[1752021203401,1.46241932,659.98,659.57,0.2636893]
[1752021203594,1.46241932,659.97,659.57,0.2636893]
[1752021203894,1.46241932,659.96,659.57,0.2636893]
[1752021204094,1.46241932,659.95,659.57,0.2636893]
[1752021204299,1.46241932,659.94,659.57,0.2636893]
[1752021204499,1.70224701,660.03,659.57,0.2636893]
[1752021204500,1.46241932,659.93,659.57,0.2636893]
[1752021204799,1.46241932,659.92,659.57,0.2636893]
[1752021205000,1.46241932,659.91,659.57,0.2636893]
[1752021205200,1.46241932,659.9,659.57,0.2636893]
[1752021205396,1.46241932,659.89,659.57,0.2636893]
[1752021205697,1.46241932,659.88,659.57,0.2636893]
[1752021205896,1.46241932,659.87,659.57,0.2636893]
[1752021206196,1.46241932,659.86,659.57,0.2636893]
[1752021206397,1.46241932,659.85,659.57,0.2636893]
[1752021206594,1.46241932,659.84,659.57,0.2636893]
[1752021206796,1.46241932,659.83,659.57,0.2636893]
[1752021207000,1.70224701,660.03,659.57,0.2636893]
[1752021207200,1.46232895,660.02,659.57,0.2636893]
[1752021207398,1.46232895,660.01,659.57,0.2636893]
[1752021207606,1.46232895,660.0,659.57,0.2636893]
[1752021207800,1.46232895,659.99,659.57,0.2636893]
[1752021207999,1.46232895,659.98,659.57,0.2636893]
[1752021208202,1.46232895,659.97,659.57,0.2636893]
[1752021208403,1.46232895,659.96,659.57,0.2636893]
[1752021208601,1.46232895,659.95,659.57,0.2636893]
[1752021208802,1.46232895,659.94,659.57,0.2636893]
[1752021209000,1.46232895,659.93,659.57,0.2636893]
[1752021209200,1.46232895,659.92,659.57,0.2636893]
[1752021209400,1.46232895,659.91,659.57,0.2636893]
[1752021209605,1.46232895,659.9,659.57,0.2636893]
[1752021209804,1.70224701,660.03,659.57,0.2636893]
[1752021209805,1.46232895,659.89,659.57,0.2636893]
[1752021210104,1.46232895,659.88,659.57,0.2636893]
[1752021210305,1.46232895,659.87,659.57,0.2636893]
[1752021210504,1.70224701,660.03,659.57,0.2636893]
[1752021210505,1.46232895,659.86,659.57,0.2636893]
[1752021210702,1.46232895,659.85,659.57,0.2636893]
[1752021210906,1.46232895,659.84,659.57,0.2636893]
[1752021211108,1.70224701,660.03,659.57,0.2636893]
[1752021211307,1.46227425,660.02,659.57,0.2636893]
[1752021211508,1.46227425,660.01,659.57,0.2636893]
[1752021211807,1.46227425,660.0,659.57,0.2636893]
[1752021212103,1.46227425,659.99,659.57,0.2636893]
[1752021212406,1.46227425,659.98,659.57,0.2636893]
[1752021212607,1.46227425,659.97,659.57,0.2636893]
[1752021212903,1.46227425,659.96,659.57,0.2636893]
[1752021213106,1.46227425,659.95,659.57,0.2636893]
[1752021213304,1.46227425,659.94,659.57,0.2636893]
[1752021213503,1.46227425,659.93,659.57,0.2636893]
[1752021213710,1.46227425,659.92,659.57,0.2636893]
[1752021213908,1.46227425,659.91,659.57,0.2636893]
[1752021214104,1.46227425,659.9,659.57,0.2636893]
[1752021214409,1.46227425,659.89,659.57,0.2636893]
[1752021214608,1.46227425,659.88,659.57,0.2636893]
[1752021214806,1.46227425,659.87,659.57,0.2636893]
[1752021215006,1.46227425,659.86,659.57,0.2636893]
[1752021215212,1.46227425,659.85,659.57,0.2636893]
[1752021215411,1.46227425,659.84,659.57,0.2636893]
[1752021215609,1.70224701,660.03,659.57,0.2636893]
[1752021215811,1.46230261,660.02,659.57,0.2636893]
[1752021216014,1.46230261,660.01,659.57,0.2636893]
[1752021216209,1.46230261,660.0,659.57,0.2636893]
[1752021216411,1.46230261,659.99,659.57,0.2636893]
[1752021216614,1.46230261,659.98,659.57,0.2636893]
[1752021216812,1.46230261,659.97,659.57,0.2636893]
[1752021217013,1.46230261,659.96,659.57,0.2636893]
[1752021217217,1.46230261,659.95,659.57,0.2636893]
[1752021217416,1.70224701,660.04,659.57,0.2636893]
[1752021217417,1.46230261,659.94,659.57,0.2636893]
[1752021217618,1.46230261,659.93,659.57,0.2636893]
[1752021217913,1.46230261,659.92,659.57,0.2636893]
[1752021218215,1.46230261,659.91,659.57,0.2636893]
[1752021218515,1.46230261,659.9,659.57,0.2636893]
[1752021218720,1.46230261,659.89,659.57,0.2636893]
[1752021218917,1.46230261,659.88,659.57,0.2636893]
[1752021219114,1.46230261,659.87,659.57,0.2636893]
[1752021219317,1.46230261,659.86,659.57,0.2636893]
[1752021219517,1.46230261,659.85,659.57,0.2636893]
[1752021219719,1.70224701,660.04,659.57,0.2636893]
[1752021219919,1.46237285,660.03,659.57,0.2636893]
[1752021220215,1.46237285,660.02,659.57,0.2636893]
[1752021220419,1.46237285,660.01,659.57,0.2636893]
[1752021220620,1.46237285,660.0,659.57,0.2636893]
[1752021220815,1.46237285,659.99,659.57,0.2636893]
[1752021221018,1.46237285,659.98,659.57,0.2636893]
[1752021221217,1.46237285,659.97,659.57,0.2636893]
[1752021221417,1.46237285,659.96,659.57,0.2636893]
[1752021221616,1.46237285,659.95,659.57,0.2636893]
[1752021221821,1.46237285,659.94,659.57,0.2636893]
[1752021222020,1.46237285,659.93,659.57,0.2636893]
[1752021222320,1.46237285,659.92,659.57,0.2636893]
[1752021222621,1.46237285,659.91,659.57,0.2636893]
[1752021222820,1.46237285,659.9,659.57,0.2636893]
[1752021223121,1.46237285,659.89,659.57,0.2636893]
[1752021223321,1.70224701,660.08,659.57,0.2636893]
[1752021223523,1.46249723,660.07,659.57,0.2636893]
[1752021223718,1.46249723,660.06,659.57,0.2636893]
[1752021224022,1.46249723,660.05,659.57,0.2636893]
[1752021224318,1.46249723,660.04,659.57,0.2636893]
[1752021224517,1.46249723,660.03,659.57,0.2636893]
[1752021224816,1.70224701,660.08,659.57,0.2636893]
[1752021224817,1.46249723,660.02,659.57,0.2636893]
[1752021225021,1.46249723,660.01,659.57,0.2636893]
[1752021225318,1.46249723,660.0,659.57,0.2636893]
[1752021225618,1.46249723,659.99,659.57,0.2636893]
[1752021225923,1.46249723,659.98,659.57,0.2636893]
[1752021226119,1.46249723,659.97,659.57,0.2636893]
[1752021226321,1.46249723,659.96,659.57,0.2636893]
[1752021226619,1.46249723,659.95,659.57,0.2636893]
[1752021226818,1.46249723,659.94,659.57,0.2636893]
[1752021227018,1.46249723,659.93,659.57,0.2636893]
[1752021227322,1.46249723,659.92,659.57,0.2636893]
[1752021227622,1.46249723,659.91,659.57,0.2636893]
[1752021227822,1.46249723,659.9,659.57,0.2636893]
[1752021228022,1.46249723,659.89,659.57,0.2636893]
[1752021228320,1.46249723,659.88,659.57,0.2636893]
[1752021228620,1.70224701,660.07,659.57,0.2636893]
[1752021228818,1.46277482,660.06,659.57,0.2636893]
[1752021229022,1.46277482,660.05,659.57,0.2636893]
[1752021229319,1.46277482,660.04,659.57,0.2636893]
[1752021229522,1.46277482,660.03,659.57,0.2636893]
[1752021229722,1.46277482,660.02,659.57,0.2636893]
[1752021230022,1.46277482,660.01,659.57,0.2636893]
[1752021230217,1.46277482,660.0,659.57,0.2636893]
[1752021230418,1.46277482,659.99,659.57,0.2636893]
[1752021230621,1.46277482,659.98,659.57,0.2636893]
[1752021230822,1.46277482,659.97,659.57,0.2636893]
[1752021231119,1.46277482,659.96,659.57,0.2636893]
[1752021231423,1.46277482,659.95,659.57,0.2636893]
[1752021231623,1.46277482,659.94,659.57,0.2636893]
[1752021231920,1.46277482,659.93,659.57,0.2636893]
[1752021232120,1.46277482,659.92,659.57,0.2636893]
[1752021232322,1.46277482,659.91,659.57,0.2636893]
[1752021232621,1.46277482,659.9,659.57,0.2636893]
[1752021232923,1.46277482,659.89,659.57,0.2636893]
[1752021233119,1.46277482,659.88,659.58,2.097]
[1752021233321,1.46277482,659.87,659.58,2.097]
[1752021233519,1.46277482,659.86,659.58,2.097]
[1752021233719,1.46277482,659.85,659.58,2.097]
[1752021233925,1.46277482,659.84,659.58,2.097]
[1752021234120,1.46277482,659.83,659.58,2.097]
[1752021234324,1.70224701,660.16,659.58,2.097]
[1752021234525,1.463166,660.15,659.58,2.097]
[1752021234724,1.463166,660.14,659.58,2.097]
[1752021235024,1.463166,660.13,659.58,2.097]
[1752021235220,1.463166,660.12,659.58,2.097]
[1752021235421,1.463166,660.11,659.58,2.097]
[1752021235727,1.463166,660.1,659.58,2.097]
[1752021236024,2.26133898,660.34,659.58,2.097]
[1752021236025,1.463166,660.09,659.58,2.097]
[1752021236222,1.463166,660.08,659.58,2.097]
[1752021236419,1.463166,660.07,659.58,2.097]
[1752021236621,1.463166,660.06,659.58,2.097]
[1752021236821,1.463166,660.05,659.58,2.097]
[1752021237021,1.463166,660.04,659.58,2.097]
[1752021237322,1.463166,660.03,659.58,2.097]
[1752021237523,1.463166,660.02,659.58,2.097]
[1752021237724,1.463166,660.01,659.58,2.097]
[1752021237918,1.463166,660.0,659.58,2.097]
[1752021238123,1.463166,659.99,659.58,2.097]
[1752021238323,1.463166,659.98,659.58,2.097]
[1752021238522,1.463166,659.97,659.58,2.097]